[Event "Challengers Triathlon (GM2)"]
[Site "Biel, CH"]
[Date "2025.07.13"]
[Round "5"]
[White "Dardha, Daniel"]
[Black "Ma, Qun"]
[Result "1/2-1/2"]
[Board "3"]
[TimeControl "900+5"]
[WhiteFideId "240990"]
[BlackFideId "8603154"]
[WhiteTitle "GM"]
[BlackTitle "GM"]
[WhiteElo "2580"]
[BlackElo "2617"]
[WhiteTeam "BEL"]
[BlackTeam "CHN"]
[WhiteClock "0:00:22"]
[BlackClock "0:00:24"]
[Variant "Standard"]

1. e4 {[%clk 0:15:06]}  e5 {[%clk 0:15:09]} 2. Nf3 {[%clk 0:15:09]}  Nc6 {[%clk 0:15:13]} 3. Bc4 {[%clk 0:15:11]}  Bc5 {[%clk 0:15:17]} 4. d3 {[%clk 0:15:12]}  Nf6 {[%clk 0:15:21]} 5. Nc3 {[%clk 0:15:15]}  d6 {[%clk 0:15:17]} 6. Na4 {[%clk 0:15:18]}  Bb6 {[%clk 0:15:17]} 7. a3 {[%clk 0:15:11]}  O-O {[%clk 0:15:13]} 8. O-O {[%clk 0:15:13]}  Ne7 {[%clk 0:15:06]} 9. Re1 {[%clk 0:14:53]}  Ng6 {[%clk 0:15:09]} 10. b4 {[%clk 0:14:17]}  Re8 {[%clk 0:15:11]} 11. h3 {[%clk 0:13:48]}  h6 {[%clk 0:15:12]} 12. Rb1 {[%clk 0:13:07]}  c6 {[%clk 0:15:07]} 13. Nxb6 {[%clk 0:13:09]}  axb6 {[%clk 0:15:10]} 14. Bb3 {[%clk 0:12:42]}  b5 {[%clk 0:15:14]} 15. c4 {[%clk 0:12:07]}  Be6 {[%clk 0:15:17]} 16. cxb5 {[%clk 0:11:22]}  cxb5 {[%clk 0:15:12]} 17. Bxe6 {[%clk 0:10:39]}  Rxe6 {[%clk 0:15:15]} 18. Bb2 {[%clk 0:10:00]}  d5 {[%clk 0:12:36]} 19. g3 {[%clk 0:08:39]}  Rc8 {[%clk 0:11:55]} 20. Qb3 {[%clk 0:08:13]}  d4 {[%clk 0:08:52]} 21. Rbc1 {[%clk 0:06:11]}  Rec6 {[%clk 0:08:55]} 22. Kg2 {[%clk 0:05:58]}  Nh5 {[%clk 0:08:11]} 23. Rxc6 {[%clk 0:05:44]}  Rxc6 {[%clk 0:08:15]} 24. Qd1 {[%clk 0:05:21]}  Qc8 {[%clk 0:07:22]} 25. Ng1 {[%clk 0:03:17]}  Nf6 {[%clk 0:04:40]} 26. Re2 {[%clk 0:02:59]}  Nd7 {[%clk 0:04:44]} 27. a4 {[%clk 0:02:45]}  bxa4 {[%clk 0:03:57]} 28. Qxa4 {[%clk 0:02:48]}  Ra6 {[%clk 0:03:59]} 29. Qb3 {[%clk 0:02:44]}  b5 {[%clk 0:03:56]} 30. Rc2 {[%clk 0:02:43]}  Rc6 {[%clk 0:03:55]} 31. Rxc6 {[%clk 0:02:20]}  Qxc6 {[%clk 0:04:00]} 32. Ne2 {[%clk 0:02:06]}  Kf8 {[%clk 0:03:00]} 33. f4 {[%clk 0:01:51]}  f6 {[%clk 0:03:03]} 34. f5 {[%clk 0:01:36]}  Ne7 {[%clk 0:03:00]} 35. Bxd4 {[%clk 0:01:26]}  Nxf5 {[%clk 0:01:49]} 36. Bf2 {[%clk 0:01:26]}  Ne7 {[%clk 0:01:43]} 37. Nc3 {[%clk 0:01:01]}  f5 {[%clk 0:01:41]} 38. Kg1 {[%clk 0:00:34]}  Nf6 {[%clk 0:00:57]} 39. Bc5 {[%clk 0:00:31]}  fxe4 {[%clk 0:01:01]} 40. dxe4 {[%clk 0:00:18]}  Nxe4 {[%clk 0:01:01]} 41. Nxe4 {[%clk 0:00:09]}  Qxe4 {[%clk 0:01:05]} 42. Qe6 {[%clk 0:00:12]}  Qe1+ {[%clk 0:00:38]} 43. Kg2 {[%clk 0:00:15]}  Qe2+ {[%clk 0:00:29]} 44. Kg1 {[%clk 0:00:18]}  Qe1+ {[%clk 0:00:24]} 45. Kg2 {[%clk 0:00:22]}  Qe2+ {[%clk 0:00:24]} 1/2-1/2

[Event "Challengers Triathlon (GM2)"]
[Site "Biel, CH"]
[Date "2025.07.20"]
[Round "11"]
[White "Dardha, Daniel"]
[Black "Navara, David"]
[Result "1/2-1/2"]
[Board "1"]
[TimeControl "180+2"]
[WhiteFideId "240990"]
[BlackFideId "309095"]
[WhiteTitle "GM"]
[BlackTitle "GM"]
[WhiteElo "2592"]
[BlackElo "2646"]
[WhiteTeam "BEL"]
[BlackTeam "CZE"]
[WhiteClock "0:00:12"]
[BlackClock "0:00:14"]
[Variant "Standard"]

1. c4 {[%clk 0:03:00]}  Nf6 {[%clk 0:03:00]} 2. Nf3 {[%clk 0:03:00]}  e6 {[%clk 0:02:59]} 3. Nc3 {[%clk 0:03:01]}  d5 {[%clk 0:03:00]} 4. e3 {[%clk 0:03:00]}  c5 {[%clk 0:03:00]} 5. cxd5 {[%clk 0:02:57]}  exd5 {[%clk 0:03:01]} 6. Bb5+ {[%clk 0:02:55]}  Nc6 {[%clk 0:02:53]} 7. d4 {[%clk 0:02:54]}  cxd4 {[%clk 0:02:48]} 8. Nxd4 {[%clk 0:02:54]}  Bd7 {[%clk 0:02:48]} 9. Nf3 {[%clk 0:02:47]}  a6 {[%clk 0:02:34]} 10. Be2 {[%clk 0:02:47]}  Be6 {[%clk 0:02:29]} 11. O-O {[%clk 0:02:45]}  Bd6 {[%clk 0:02:24]} 12. b3 {[%clk 0:02:45]}  O-O {[%clk 0:02:24]} 13. Bb2 {[%clk 0:02:46]}  Qe7 {[%clk 0:02:19]} 14. Nd4 {[%clk 0:02:25]}  Ne5 {[%clk 0:02:02]} 15. Rc1 {[%clk 0:01:59]}  Rad8 {[%clk 0:01:47]} 16. Qc2 {[%clk 0:01:51]}  Rfe8 {[%clk 0:01:15]} 17. h3 {[%clk 0:01:44]}  Qd7 {[%clk 0:01:00]} 18. Nxe6 {[%clk 0:00:49]}  fxe6 {[%clk 0:00:54]} 19. Rfd1 {[%clk 0:00:42]}  Rc8 {[%clk 0:00:49]} 20. Qb1 {[%clk 0:00:43]}  Bb8 {[%clk 0:00:42]} 21. g3 {[%clk 0:00:33]}  Qf7 {[%clk 0:00:34]} 22. Kg2 {[%clk 0:00:34]}  Rf8 {[%clk 0:00:34]} 23. f4 {[%clk 0:00:32]}  Nc6 {[%clk 0:00:34]} 24. Bf3 {[%clk 0:00:32]}  Ba7 {[%clk 0:00:26]} 25. Qd3 {[%clk 0:00:17]}  Rfd8 {[%clk 0:00:15]} 26. Ne2 {[%clk 0:00:18]}  Nb4 {[%clk 0:00:15]} 27. Qd2 {[%clk 0:00:19]}  Nc6 {[%clk 0:00:11]} 28. Nd4 {[%clk 0:00:19]}  Ne4 {[%clk 0:00:09]} 29. Qe1 {[%clk 0:00:09]}  Nxd4 {[%clk 0:00:07]} 30. Bxd4 {[%clk 0:00:09]}  Rxc1 {[%clk 0:00:05]} 31. Rxc1 {[%clk 0:00:10]}  Bxd4 {[%clk 0:00:06]} 32. exd4 {[%clk 0:00:11]}  Nd6 {[%clk 0:00:07]} 33. Qe5 {[%clk 0:00:12]}  Qf6 {[%clk 0:00:07]} 34. Rc7 {[%clk 0:00:12]}  Nb5 {[%clk 0:00:08]} 35. Rxb7 {[%clk 0:00:07]}  Nxd4 {[%clk 0:00:09]} 36. Bg4 {[%clk 0:00:04]}  Qxe5 {[%clk 0:00:08]} 37. fxe5 {[%clk 0:00:05]}  Rc8 {[%clk 0:00:09]} 38. Rb4 {[%clk 0:00:05]}  Rc2+ {[%clk 0:00:09]} 39. Kf1 {[%clk 0:00:06]}  h5 {[%clk 0:00:10]} 40. Rxd4 {[%clk 0:00:03]}  hxg4 {[%clk 0:00:11]} 41. Rxg4 {[%clk 0:00:04]}  Rxa2 {[%clk 0:00:12]} 42. Rb4 {[%clk 0:00:04]}  Kf7 {[%clk 0:00:10]} 43. Rb7+ {[%clk 0:00:04]}  Kg6 {[%clk 0:00:11]} 44. g4 {[%clk 0:00:05]}  Rh2 {[%clk 0:00:05]} 45. Re7 {[%clk 0:00:06]}  Rxh3 {[%clk 0:00:06]} 46. Rxe6+ {[%clk 0:00:07]}  Kg5 {[%clk 0:00:06]} 47. Rxa6 {[%clk 0:00:05]}  Rxb3 {[%clk 0:00:06]} 48. Rd6 {[%clk 0:00:04]}  Kxg4 {[%clk 0:00:06]} 49. Rxd5 {[%clk 0:00:05]}  Kf3 {[%clk 0:00:06]} 50. Kg1 {[%clk 0:00:05]}  g5 {[%clk 0:00:05]} 51. e6 {[%clk 0:00:06]}  Re3 {[%clk 0:00:06]} 52. Rf5+ {[%clk 0:00:04]}  Kg4 {[%clk 0:00:07]} 53. Rf6 {[%clk 0:00:05]}  Kg3 {[%clk 0:00:08]} 54. Kf1 {[%clk 0:00:05]}  g4 {[%clk 0:00:08]} 55. Kg1 {[%clk 0:00:05]}  Re1+ {[%clk 0:00:09]} 56. Rf1 {[%clk 0:00:05]}  Rxe6 {[%clk 0:00:10]} 57. Rc1 {[%clk 0:00:06]}  Kh3 {[%clk 0:00:11]} 58. Rd1 {[%clk 0:00:07]}  g3 {[%clk 0:00:11]} 59. Rc1 {[%clk 0:00:08]}  Re3 {[%clk 0:00:12]} 60. Rd1 {[%clk 0:00:10]}  g2 {[%clk 0:00:13]} 61. Rc1 {[%clk 0:00:11]}  Rf3 {[%clk 0:00:14]} 62. Rd1 {[%clk 0:00:12]}  Rf1+ {[%clk 0:00:14]} 1/2-1/2

[Event "Challengers Triathlon (GM2)"]
[Site "Biel, CH"]
[Date "2025.07.20"]
[Round "11"]
[White "Hakobyan, Aram"]
[Black "Ma, Qun"]
[Result "1/2-1/2"]
[Board "2"]
[TimeControl "180+2"]
[WhiteFideId "13306677"]
[BlackFideId "8603154"]
[WhiteTitle "GM"]
[BlackTitle "GM"]
[WhiteElo "2557"]
[BlackElo "2614"]
[WhiteTeam "ARM"]
[BlackTeam "CHN"]
[WhiteClock "0:00:13"]
[BlackClock "0:00:06"]
[Variant "Standard"]

1. e4 {[%clk 0:03:03]}  e5 {[%clk 0:03:03]} 2. Nf3 {[%clk 0:03:04]}  Nc6 {[%clk 0:03:05]} 3. Bb5 {[%clk 0:03:04]}  Nf6 {[%clk 0:03:06]} 4. O-O {[%clk 0:03:04]}  Nxe4 {[%clk 0:03:07]} 5. d4 {[%clk 0:03:03]}  Nd6 {[%clk 0:03:08]} 6. Bg5 {[%clk 0:03:03]}  Be7 {[%clk 0:02:55]} 7. Bxe7 {[%clk 0:03:02]}  Qxe7 {[%clk 0:02:44]} 8. Nxe5 {[%clk 0:03:03]}  Nxe5 {[%clk 0:01:56]} 9. Re1 {[%clk 0:03:04]}  O-O {[%clk 0:01:57]} 10. Rxe5 {[%clk 0:03:04]}  Qd8 {[%clk 0:01:29]} 11. Bd3 {[%clk 0:03:05]}  Ne8 {[%clk 0:01:10]} 12. Nc3 {[%clk 0:03:05]}  d6 {[%clk 0:01:07]} 13. Re3 {[%clk 0:03:04]}  Nf6 {[%clk 0:01:07]} 14. h3 {[%clk 0:03:00]}  Re8 {[%clk 0:01:03]} 15. Qe2 {[%clk 0:02:50]}  Rxe3 {[%clk 0:00:58]} 16. Qxe3 {[%clk 0:02:50]}  Bd7 {[%clk 0:00:52]} 17. d5 {[%clk 0:02:46]}  c5 {[%clk 0:00:38]} 18. dxc6 {[%clk 0:02:30]}  bxc6 {[%clk 0:00:39]} 19. Re1 {[%clk 0:02:28]}  Qb6 {[%clk 0:00:28]} 20. b3 {[%clk 0:02:11]}  Qxe3 {[%clk 0:00:27]} 21. Rxe3 {[%clk 0:02:12]}  Kf8 {[%clk 0:00:26]} 22. g4 {[%clk 0:02:12]}  h6 {[%clk 0:00:26]} 23. Kg2 {[%clk 0:02:10]}  Re8 {[%clk 0:00:22]} 24. Rxe8+ {[%clk 0:02:10]}  Kxe8 {[%clk 0:00:23]} 25. f3 {[%clk 0:02:07]}  Ke7 {[%clk 0:00:11]} 26. Kf2 {[%clk 0:01:51]}  g5 {[%clk 0:00:25]} 27. Ke3 {[%clk 0:01:51]}  Ne8 {[%clk 0:00:15]} 28. f4 {[%clk 0:01:47]}  Nc7 {[%clk 0:00:12]} 29. f5 {[%clk 0:01:40]}  c5 {[%clk 0:00:07]} 30. Ne4 {[%clk 0:01:01]}  Bc6 {[%clk 0:00:07]} 31. Ng3 {[%clk 0:00:49]}  Nd5+ {[%clk 0:00:06]} 32. Kd2 {[%clk 0:00:49]}  Nf4 {[%clk 0:00:07]} 33. Bf1 {[%clk 0:00:50]}  Kf6 {[%clk 0:00:07]} 34. c3 {[%clk 0:00:50]}  Ke5 {[%clk 0:00:08]} 35. b4 {[%clk 0:00:52]}  Bf3 {[%clk 0:00:05]} 36. Ke3 {[%clk 0:00:52]}  Bg2 {[%clk 0:00:05]} 37. Bxg2 {[%clk 0:00:52]}  Nxg2+ {[%clk 0:00:07]} 38. Kf3 {[%clk 0:00:47]}  Nf4 {[%clk 0:00:07]} 39. b5 {[%clk 0:00:48]}  d5 {[%clk 0:00:06]} 40. a4 {[%clk 0:00:49]}  Nxh3 {[%clk 0:00:06]} 41. a5 {[%clk 0:00:49]}  Kd6 {[%clk 0:00:07]} 42. Ne2 {[%clk 0:00:43]}  d4 {[%clk 0:00:04]} 43. cxd4 {[%clk 0:00:39]}  cxd4 {[%clk 0:00:05]} 44. Nxd4 {[%clk 0:00:40]}  Nf4 {[%clk 0:00:07]} 45. b6 {[%clk 0:00:23]}  axb6 {[%clk 0:00:08]} 46. axb6 {[%clk 0:00:24]}  Nd5 {[%clk 0:00:06]} 47. b7 {[%clk 0:00:21]}  Kc7 {[%clk 0:00:08]} 48. Nb5+ {[%clk 0:00:21]}  Kxb7 {[%clk 0:00:05]} 49. Nd6+ {[%clk 0:00:22]}  Kc7 {[%clk 0:00:04]} 50. Nxf7 {[%clk 0:00:23]}  Kd7 {[%clk 0:00:04]} 51. Nxh6 {[%clk 0:00:15]}  Ke7 {[%clk 0:00:06]} 52. Ke4 {[%clk 0:00:16]}  Nf6+ {[%clk 0:00:04]} 53. Ke5 {[%clk 0:00:17]}  Nd7+ {[%clk 0:00:05]} 54. Ke4 {[%clk 0:00:13]}  Nf6+ {[%clk 0:00:04]} 55. Ke5 {[%clk 0:00:13]}  Nd7+ {[%clk 0:00:05]} 56. Kd4 {[%clk 0:00:13]}  Nf6 {[%clk 0:00:04]} 57. Ke5 {[%clk 0:00:13]}  Nd7+ {[%clk 0:00:06]} 1/2-1/2

[Event "Challengers Triathlon (GM2)"]
[Site "Biel, CH"]
[Date "2025.07.20"]
[Round "11"]
[White "Jumabayev, Rinat"]
[Black "Theodorou, Nikolas"]
[Result "0-1"]
[Board "3"]
[TimeControl "180+2"]
[WhiteFideId "13702661"]
[BlackFideId "4262875"]
[WhiteTitle "GM"]
[BlackTitle "GM"]
[WhiteElo "2520"]
[BlackElo "2549"]
[WhiteTeam "KAZ"]
[BlackTeam "GRE"]
[WhiteClock "0:00:04"]
[BlackClock "0:00:05"]
[Variant "Standard"]

1. Nf3 {[%clk 0:03:03]}  Nf6 {[%clk 0:03:01]} 2. g3 {[%clk 0:03:04]}  b6 {[%clk 0:03:01]} 3. Bg2 {[%clk 0:03:04]}  Bb7 {[%clk 0:02:52]} 4. O-O {[%clk 0:03:04]}  g6 {[%clk 0:02:52]} 5. d4 {[%clk 0:02:41]}  Bg7 {[%clk 0:02:52]} 6. c4 {[%clk 0:02:09]}  O-O {[%clk 0:02:52]} 7. Qc2 {[%clk 0:02:07]}  c5 {[%clk 0:02:47]} 8. d5 {[%clk 0:02:06]}  b5 {[%clk 0:02:47]} 9. e4 {[%clk 0:02:06]}  bxc4 {[%clk 0:02:42]} 10. Rd1 {[%clk 0:02:02]}  e6 {[%clk 0:02:29]} 11. Nc3 {[%clk 0:01:45]}  exd5 {[%clk 0:01:38]} 12. exd5 {[%clk 0:01:46]}  d6 {[%clk 0:01:37]} 13. Nd2 {[%clk 0:01:33]}  Ba6 {[%clk 0:01:23]} 14. Bf1 {[%clk 0:01:01]}  Nbd7 {[%clk 0:01:20]} 15. Nxc4 {[%clk 0:00:57]}  Bxc4 {[%clk 0:01:16]} 16. Bxc4 {[%clk 0:00:57]}  Re8 {[%clk 0:01:15]} 17. Bf4 {[%clk 0:00:47]}  Ne5 {[%clk 0:01:06]} 18. Be2 {[%clk 0:00:48]}  h5 {[%clk 0:01:07]} 19. h3 {[%clk 0:00:35]}  Rb8 {[%clk 0:01:07]} 20. Rab1 {[%clk 0:00:31]}  Rb4 {[%clk 0:00:57]} 21. a3 {[%clk 0:00:30]}  Rd4 {[%clk 0:00:53]} 22. Be3 {[%clk 0:00:30]}  Rxd1+ {[%clk 0:00:52]} 23. Rxd1 {[%clk 0:00:31]}  Qd7 {[%clk 0:00:52]} 24. Kg2 {[%clk 0:00:32]}  Rb8 {[%clk 0:00:52]} 25. f4 {[%clk 0:00:27]}  Neg4 {[%clk 0:00:50]} 26. hxg4 {[%clk 0:00:28]}  Nxg4 {[%clk 0:00:51]} 27. Bg1 {[%clk 0:00:26]}  Nh6 {[%clk 0:00:46]} 28. b3 {[%clk 0:00:23]}  h4 {[%clk 0:00:43]} 29. gxh4 {[%clk 0:00:23]}  Nf5 {[%clk 0:00:44]} 30. Bf2 {[%clk 0:00:25]}  Qe7 {[%clk 0:00:45]} 31. Ne4 {[%clk 0:00:20]}  Bd4 {[%clk 0:00:38]} 32. Bg4 {[%clk 0:00:15]}  Bxf2 {[%clk 0:00:26]} 33. Bxf5 {[%clk 0:00:16]}  Be3 {[%clk 0:00:21]} 34. Bh3 {[%clk 0:00:17]}  Qxh4 {[%clk 0:00:20]} 35. Qc3 {[%clk 0:00:10]}  Qxf4 {[%clk 0:00:07]} 36. Nf6+ {[%clk 0:00:12]}  Kf8 {[%clk 0:00:08]} 37. Rf1 {[%clk 0:00:05]}  Qg5+ {[%clk 0:00:06]} 38. Ng4 {[%clk 0:00:05]}  Bd4 {[%clk 0:00:06]} 39. Qg3 {[%clk 0:00:06]}  Kg7 {[%clk 0:00:05]} 40. Rf3 {[%clk 0:00:07]}  Qd2+ {[%clk 0:00:05]} 41. Nf2 {[%clk 0:00:08]}  Re8 {[%clk 0:00:05]} 42. Qxd6 {[%clk 0:00:05]}  Re5 {[%clk 0:00:04]} 43. Qd8 {[%clk 0:00:04]}  Rg5+ {[%clk 0:00:05]} 44. Kh1 {[%clk 0:00:04]}  Qe1+ {[%clk 0:00:05]} 0-1

[Event "Challengers Triathlon (GM2)"]
[Site "Biel, CH"]
[Date "2025.07.20"]
[Round "12"]
[White "Navara, David"]
[Black "Theodorou, Nikolas"]
[Result "1-0"]
[Board "1"]
[TimeControl "180+2"]
[WhiteFideId "309095"]
[BlackFideId "4262875"]
[WhiteTitle "GM"]
[BlackTitle "GM"]
[WhiteElo "2646"]
[BlackElo "2549"]
[WhiteTeam "CZE"]
[BlackTeam "GRE"]
[WhiteClock "0:00:09"]
[BlackClock "0:00:09"]
[Variant "Standard"]

1. e4 {[%clk 0:03:03]}  e6 {[%clk 0:03:03]} 2. d4 {[%clk 0:03:04]}  d5 {[%clk 0:03:04]} 3. Nd2 {[%clk 0:03:05]}  c5 {[%clk 0:03:05]} 4. Ngf3 {[%clk 0:03:06]}  Nc6 {[%clk 0:03:05]} 5. exd5 {[%clk 0:03:06]}  exd5 {[%clk 0:03:06]} 6. Bb5 {[%clk 0:03:06]}  Bd6 {[%clk 0:03:05]} 7. dxc5 {[%clk 0:03:05]}  Bxc5 {[%clk 0:03:06]} 8. O-O {[%clk 0:03:05]}  Nge7 {[%clk 0:03:06]} 9. Nb3 {[%clk 0:03:06]}  Bb6 {[%clk 0:03:07]} 10. Re1 {[%clk 0:03:06]}  O-O {[%clk 0:03:07]} 11. Be3 {[%clk 0:03:05]}  Bg4 {[%clk 0:03:02]} 12. Bxb6 {[%clk 0:02:56]}  Qxb6 {[%clk 0:02:53]} 13. Bxc6 {[%clk 0:02:55]}  Nxc6 {[%clk 0:02:53]} 14. Qxd5 {[%clk 0:02:38]}  Nb4 {[%clk 0:02:53]} 15. Qe4 {[%clk 0:02:39]}  Bxf3 {[%clk 0:02:49]} 16. gxf3 {[%clk 0:02:40]}  Rac8 {[%clk 0:02:26]} 17. c3 {[%clk 0:02:34]}  Nc6 {[%clk 0:01:35]} 18. Rad1 {[%clk 0:02:32]}  g6 {[%clk 0:01:33]} 19. Qe3 {[%clk 0:02:17]}  Qa6 {[%clk 0:01:31]} 20. Nc5 {[%clk 0:02:09]}  Qxa2 {[%clk 0:01:30]} 21. Nd7 {[%clk 0:02:08]}  Rfd8 {[%clk 0:01:00]} 22. Qh6 {[%clk 0:01:39]}  Rxd7 {[%clk 0:01:01]} 23. Rxd7 {[%clk 0:01:39]}  Qxb2 {[%clk 0:00:59]} 24. Qf4 {[%clk 0:01:19]}  Qb3 {[%clk 0:00:59]} 25. c4 {[%clk 0:01:11]}  Rf8 {[%clk 0:00:48]} 26. Qe4 {[%clk 0:01:06]}  a5 {[%clk 0:00:32]} 27. Qd5 {[%clk 0:00:43]}  Qc3 {[%clk 0:00:14]} 28. Re8 {[%clk 0:00:28]}  Qf6 {[%clk 0:00:15]} 29. Rxf8+ {[%clk 0:00:29]}  Kxf8 {[%clk 0:00:16]} 30. Rxb7 {[%clk 0:00:12]}  Nd4 {[%clk 0:00:16]} 31. Rxf7+ {[%clk 0:00:05]}  Qxf7 {[%clk 0:00:17]} 32. Qxd4 {[%clk 0:00:05]}  Qxf3 {[%clk 0:00:12]} 33. Qh8+ {[%clk 0:00:05]}  Kf7 {[%clk 0:00:13]} 34. Qxh7+ {[%clk 0:00:06]}  Kf6 {[%clk 0:00:14]} 35. Qh8+ {[%clk 0:00:06]}  Kf7 {[%clk 0:00:15]} 36. Qh7+ {[%clk 0:00:06]}  Kf6 {[%clk 0:00:16]} 37. Qh8+ {[%clk 0:00:06]}  Kf7 {[%clk 0:00:17]} 38. Qd4 {[%clk 0:00:06]}  a4 {[%clk 0:00:15]} 39. Qd7+ {[%clk 0:00:05]}  Kf6 {[%clk 0:00:16]} 40. Qxa4 {[%clk 0:00:05]}  Qg4+ {[%clk 0:00:17]} 41. Kf1 {[%clk 0:00:06]}  Qh3+ {[%clk 0:00:18]} 42. Ke1 {[%clk 0:00:05]}  Qc3+ {[%clk 0:00:17]} 43. Ke2 {[%clk 0:00:06]}  Qb2+ {[%clk 0:00:13]} 44. Kf3 {[%clk 0:00:07]}  Qd2 {[%clk 0:00:04]} 45. Qc6+ {[%clk 0:00:07]}  Kg7 {[%clk 0:00:06]} 46. Qc7+ {[%clk 0:00:07]}  Kg8 {[%clk 0:00:07]} 47. Qb8+ {[%clk 0:00:07]}  Kg7 {[%clk 0:00:07]} 48. Qe5+ {[%clk 0:00:08]}  Kh7 {[%clk 0:00:08]} 49. Qe7+ {[%clk 0:00:08]}  Kh6 {[%clk 0:00:09]} 50. Qe3+ {[%clk 0:00:09]} 1-0

[Event "Challengers Triathlon (GM2)"]
[Site "Biel, CH"]
[Date "2025.07.20"]
[Round "12"]
[White "Ma, Qun"]
[Black "Jumabayev, Rinat"]
[Result "1-0"]
[Board "2"]
[TimeControl "180+2"]
[WhiteFideId "8603154"]
[BlackFideId "13702661"]
[WhiteTitle "GM"]
[BlackTitle "GM"]
[WhiteElo "2614"]
[BlackElo "2520"]
[WhiteTeam "CHN"]
[BlackTeam "KAZ"]
[WhiteClock "0:00:20"]
[BlackClock "0:00:05"]
[Variant "Standard"]

1. e4 {[%clk 0:03:02]}  e5 {[%clk 0:02:21]} 2. Nf3 {[%clk 0:03:03]}  Nc6 {[%clk 0:02:22]} 3. Bb5 {[%clk 0:03:04]}  Nf6 {[%clk 0:02:16]} 4. d3 {[%clk 0:03:04]}  Bc5 {[%clk 0:02:15]} 5. c3 {[%clk 0:03:04]}  O-O {[%clk 0:02:15]} 6. O-O {[%clk 0:03:03]}  d6 {[%clk 0:01:52]} 7. h3 {[%clk 0:03:01]}  Ne7 {[%clk 0:01:29]} 8. d4 {[%clk 0:02:16]}  Bb6 {[%clk 0:01:30]} 9. Bd3 {[%clk 0:02:17]}  d5 {[%clk 0:00:51]} 10. Nxe5 {[%clk 0:02:17]}  Nxe4 {[%clk 0:00:51]} 11. Nd2 {[%clk 0:02:15]}  Nxd2 {[%clk 0:00:51]} 12. Bxd2 {[%clk 0:01:50]}  Bf5 {[%clk 0:00:51]} 13. Bxf5 {[%clk 0:01:47]}  Nxf5 {[%clk 0:00:52]} 14. Qg4 {[%clk 0:01:48]}  Qc8 {[%clk 0:00:53]} 15. Rfe1 {[%clk 0:01:39]}  c6 {[%clk 0:00:46]} 16. Re2 {[%clk 0:01:30]}  f6 {[%clk 0:00:39]} 17. Nd3 {[%clk 0:01:17]}  Nd6 {[%clk 0:00:42]} 18. Bf4 {[%clk 0:01:15]}  Ne4 {[%clk 0:00:07]} 19. f3 {[%clk 0:01:15]}  Qxg4 {[%clk 0:00:07]} 20. hxg4 {[%clk 0:01:15]}  Ng5 {[%clk 0:00:08]} 21. Rae1 {[%clk 0:01:07]}  Rf7 {[%clk 0:00:07]} 22. a4 {[%clk 0:00:36]}  a5 {[%clk 0:00:06]} 23. Bd6 {[%clk 0:00:35]}  Rd7 {[%clk 0:00:05]} 24. Re8+ {[%clk 0:00:29]}  Rxe8 {[%clk 0:00:06]} 25. Rxe8+ {[%clk 0:00:31]}  Kf7 {[%clk 0:00:07]} 26. Rf8+ {[%clk 0:00:31]}  Ke6 {[%clk 0:00:08]} 27. Ba3 {[%clk 0:00:25]}  Rf7 {[%clk 0:00:05]} 28. Rb8 {[%clk 0:00:17]}  Rd7 {[%clk 0:00:05]} 29. Nf4+ {[%clk 0:00:20]} 1-0

[Event "Challengers Triathlon (GM2)"]
[Site "Biel, CH"]
[Date "2025.07.20"]
[Round "12"]
[White "Dardha, Daniel"]
[Black "Hakobyan, Aram"]
[Result "1-0"]
[Board "3"]
[TimeControl "180+2"]
[WhiteFideId "240990"]
[BlackFideId "13306677"]
[WhiteTitle "GM"]
[BlackTitle "GM"]
[WhiteElo "2592"]
[BlackElo "2557"]
[WhiteTeam "BEL"]
[BlackTeam "ARM"]
[WhiteClock "0:00:18"]
[BlackClock "0:00:13"]
[Variant "Standard"]

1. c4 {[%clk 0:03:02]}  e6 {[%clk 0:03:02]} 2. Nf3 {[%clk 0:03:02]}  d5 {[%clk 0:03:02]} 3. e3 {[%clk 0:03:01]}  Nf6 {[%clk 0:03:01]} 4. b3 {[%clk 0:03:00]}  Bd6 {[%clk 0:02:58]} 5. Bb2 {[%clk 0:03:00]}  O-O {[%clk 0:02:57]} 6. Nc3 {[%clk 0:02:58]}  c5 {[%clk 0:02:46]} 7. cxd5 {[%clk 0:02:57]}  exd5 {[%clk 0:02:45]} 8. d4 {[%clk 0:02:49]}  cxd4 {[%clk 0:02:43]} 9. Nxd4 {[%clk 0:02:50]}  Nc6 {[%clk 0:02:44]} 10. Be2 {[%clk 0:02:47]}  Nxd4 {[%clk 0:02:27]} 11. Qxd4 {[%clk 0:02:47]}  Re8 {[%clk 0:02:28]} 12. O-O {[%clk 0:02:02]}  Be5 {[%clk 0:02:29]} 13. Qd2 {[%clk 0:01:47]}  Bg4 {[%clk 0:02:13]} 14. Bxg4 {[%clk 0:00:59]}  Nxg4 {[%clk 0:02:13]} 15. h3 {[%clk 0:00:54]}  Nf6 {[%clk 0:02:13]} 16. Rfd1 {[%clk 0:00:48]}  Rc8 {[%clk 0:02:14]} 17. Rac1 {[%clk 0:00:37]}  Qa5 {[%clk 0:01:48]} 18. Nxd5 {[%clk 0:00:11]}  Rxc1 {[%clk 0:01:04]} 19. Bxc1 {[%clk 0:00:11]}  Qxd5 {[%clk 0:00:42]} 20. Qxd5 {[%clk 0:00:12]}  Nxd5 {[%clk 0:00:43]} 21. Rxd5 {[%clk 0:00:13]}  f6 {[%clk 0:00:39]} 22. Rc5 {[%clk 0:00:08]}  Kf7 {[%clk 0:00:29]} 23. Kf1 {[%clk 0:00:09]}  Ke6 {[%clk 0:00:29]} 24. Ke2 {[%clk 0:00:10]}  h5 {[%clk 0:00:28]} 25. Bd2 {[%clk 0:00:10]}  g5 {[%clk 0:00:16]} 26. g4 {[%clk 0:00:11]}  hxg4 {[%clk 0:00:17]} 27. hxg4 {[%clk 0:00:12]}  a6 {[%clk 0:00:17]} 28. a4 {[%clk 0:00:12]}  Re7 {[%clk 0:00:16]} 29. Rc4 {[%clk 0:00:13]}  Bd6 {[%clk 0:00:14]} 30. Bc3 {[%clk 0:00:13]}  Kf7 {[%clk 0:00:12]} 31. Kf3 {[%clk 0:00:12]}  Rd7 {[%clk 0:00:07]} 32. Rd4 {[%clk 0:00:13]}  Ke6 {[%clk 0:00:08]} 33. Rd3 {[%clk 0:00:12]}  Rc7 {[%clk 0:00:10]} 34. Ke4 {[%clk 0:00:09]}  Be7 {[%clk 0:00:09]} 35. f4 {[%clk 0:00:09]}  gxf4 {[%clk 0:00:09]} 36. exf4 {[%clk 0:00:10]}  Kf7 {[%clk 0:00:08]} 37. f5 {[%clk 0:00:09]}  b5 {[%clk 0:00:09]} 38. axb5 {[%clk 0:00:09]}  axb5 {[%clk 0:00:11]} 39. Rh3 {[%clk 0:00:06]}  Kg8 {[%clk 0:00:10]} 40. Kd5 {[%clk 0:00:08]}  Kf7 {[%clk 0:00:06]} 41. Bd4 {[%clk 0:00:06]}  Rd7+ {[%clk 0:00:08]} 42. Ke4 {[%clk 0:00:07]}  Kg8 {[%clk 0:00:06]} 43. Rh6 {[%clk 0:00:08]}  Kf7 {[%clk 0:00:05]} 44. Rh7+ {[%clk 0:00:04]}  Kg8 {[%clk 0:00:06]} 45. Rh3 {[%clk 0:00:05]}  Kf7 {[%clk 0:00:05]} 46. Rc3 {[%clk 0:00:05]}  b4 {[%clk 0:00:04]} 47. Rc6 {[%clk 0:00:06]}  Rb7 {[%clk 0:00:04]} 48. Ra6 {[%clk 0:00:06]}  Rd7 {[%clk 0:00:05]} 49. Ra7 {[%clk 0:00:06]}  Rxa7 {[%clk 0:00:04]} 50. Bxa7 {[%clk 0:00:07]}  Ke8 {[%clk 0:00:05]} 51. Kd5 {[%clk 0:00:09]}  Kd7 {[%clk 0:00:06]} 52. Bc5 {[%clk 0:00:10]}  Bd8 {[%clk 0:00:08]} 53. Bxb4 {[%clk 0:00:11]}  Bc7 {[%clk 0:00:09]} 54. Bc3 {[%clk 0:00:12]}  Bd8 {[%clk 0:00:10]} 55. b4 {[%clk 0:00:13]}  Be7 {[%clk 0:00:10]} 56. b5 {[%clk 0:00:14]}  Bd8 {[%clk 0:00:11]} 57. Bd4 {[%clk 0:00:15]}  Be7 {[%clk 0:00:12]} 58. Bc5 {[%clk 0:00:14]}  Bd8 {[%clk 0:00:13]} 59. b6 {[%clk 0:00:15]}  Kc8 {[%clk 0:00:11]} 60. Kc6 {[%clk 0:00:16]}  Bc7 {[%clk 0:00:11]} 61. b7+ {[%clk 0:00:17]}  Kb8 {[%clk 0:00:13]} 62. Ba7+ {[%clk 0:00:18]} 1-0